[Event "*** Titled Tuesday Blitz"]
[Site "Chess.com"]
[Date "2020.12.01"]
[Round "1"]
[White "Sanyura"]
[Black "Michaelson_11"]
[Result "1-0"]
[WhiteElo "2506"]
[BlackElo "2147"]
[TimeControl "180+1"]
[EndTime "10:02:30 PST"]
[Termination "Sanyura won by resignation"]

1. d4 {[%clk 0:02:58.5]} 1... Nf6 {[%clk 0:02:58.8]} 2. c4 {[%clk 0:02:57.2]}
2... g6 {[%clk 0:02:56.8]} 3. Nc3 {[%clk 0:02:55.3]} 3... Bg7 {[%clk 0:02:57.3]}
4. e4 {[%clk 0:02:55.6]} 4... O-O {[%clk 0:02:57.6]} 5. Nf3 {[%clk 0:02:55.2]}
5... d6 {[%clk 0:02:57.7]} 6. Be2 {[%clk 0:02:51.4]} 6... e5 {[%clk 0:02:56.8]}
7. d5 {[%clk 0:02:51.2]} 7... a5 {[%clk 0:02:55.7]} 8. Be3 {[%clk 0:02:48]} 8...
Ng4 {[%clk 0:02:53.1]} 9. Bg5 {[%clk 0:02:47.6]} 9... f6 {[%clk 0:02:52.9]} 10.
Bd2 {[%clk 0:02:47.9]} 10... Na6 {[%clk 0:02:24.7]} 11. h3 {[%clk 0:02:46.2]}
11... Nh6 {[%clk 0:02:21.4]} 12. g4 {[%clk 0:02:47.1]} 12... f5 {[%clk
0:02:18.8]} 13. gxf5 {[%clk 0:02:37.2]} 13... gxf5 {[%clk 0:02:19.7]} 14. Rg1
{[%clk 0:02:34.8]} 14... Qf6 {[%clk 0:02:10.6]} 15. Bg5 {[%clk 0:02:32.9]} 15...
Qg6 {[%clk 0:01:57.9]} 16. Nh4 {[%clk 0:02:32.3]} 1-0

[Event "*** Titled Tuesday Blitz"]
[Site "Chess.com"]
[Date "2020.12.01"]
[Round "1"]
[White "WelshTiger"]
[Black "onetowin"]
[Result "1-0"]
[WhiteElo "2473"]
[BlackElo "2010"]
[TimeControl "180+1"]
[EndTime "10:02:41 PST"]
[Termination "WelshTiger won by resignation"]

1. e4 {[%clk 0:03:00.6]} 1... c5 {[%clk 0:02:59]} 2. Nf3 {[%clk 0:03:00.4]} 2...
e6 {[%clk 0:02:59.3]} 3. d4 {[%clk 0:03:00.2]} 3... cxd4 {[%clk 0:03:00.1]} 4.
Nxd4 {[%clk 0:03:00.8]} 4... Nc6 {[%clk 0:03:00]} 5. Nb5 {[%clk 0:03:00.8]} 5...
d6 {[%clk 0:02:58.3]} 6. c4 {[%clk 0:03:00.6]} 6... Nf6 {[%clk 0:02:51.1]} 7.
N1c3 {[%clk 0:03:00.6]} 7... a6 {[%clk 0:02:50]} 8. Na3 {[%clk 0:03:00.8]} 8...
Be7 {[%clk 0:02:50.2]} 9. Be2 {[%clk 0:03:00.5]} 9... b6 {[%clk 0:02:50.2]} 10.
O-O {[%clk 0:03:00.4]} 10... Bb7 {[%clk 0:02:50.2]} 11. Be3 {[%clk 0:02:59.1]}
11... Nd7 {[%clk 0:02:48.5]} 12. Rc1 {[%clk 0:02:50.2]} 12... Rc8 {[%clk
0:02:42.7]} 13. Kh1 {[%clk 0:02:47.4]} 13... O-O {[%clk 0:02:27.1]} 14. f3
{[%clk 0:02:39.7]} 14... Qc7 {[%clk 0:02:25]} 15. Qe1 {[%clk 0:02:25.4]} 15...
Rfd8 {[%clk 0:02:18.6]} 16. Qf2 {[%clk 0:02:24.9]} 16... Nc5 {[%clk 0:02:09]}
17. Nc2 {[%clk 0:02:19.2]} 17... d5 {[%clk 0:02:05.6]} 18. cxd5 {[%clk 0:02:18]}
18... exd5 {[%clk 0:02:06.5]} 19. Nxd5 {[%clk 0:02:18.2]} 19... Bd6 {[%clk
0:01:58.5]} 20. Nxc7 {[%clk 0:02:17.8]} 1-0

[Event "*** Titled Tuesday Blitz"]
[Site "Chess.com"]
[Date "2020.12.01"]
[Round "1"]
[White "vladgoncharov"]
[Black "enriquebutti"]
[Result "1-0"]
[WhiteElo "2475"]
[BlackElo "2027"]
[TimeControl "180+1"]
[EndTime "10:03:16 PST"]
[Termination "vladgoncharov won by resignation"]

1. d4 {[%clk 0:02:57.8]} 1... Nf6 {[%clk 0:02:59.6]} 2. c4 {[%clk 0:02:57.1]}
2... e6 {[%clk 0:02:59.3]} 3. Nf3 {[%clk 0:02:56.5]} 3... b6 {[%clk 0:02:58.9]}
4. g3 {[%clk 0:02:56.1]} 4... Ba6 {[%clk 0:02:57.8]} 5. Qa4 {[%clk 0:02:55.2]}
5... c6 {[%clk 0:02:53]} 6. Nc3 {[%clk 0:02:53.1]} 6... d5 {[%clk 0:02:44.7]} 7.
cxd5 {[%clk 0:02:47.4]} 7... exd5 {[%clk 0:02:44.4]} 8. Bg2 {[%clk 0:02:35.9]}
8... Be7 {[%clk 0:02:43.8]} 9. Ne5 {[%clk 0:02:26.4]} 9... Bb7 {[%clk
0:02:42.4]} 10. O-O {[%clk 0:02:20.1]} 10... Nfd7 {[%clk 0:02:41.8]} 11. Nd3
{[%clk 0:01:57.6]} 11... O-O {[%clk 0:02:38.1]} 12. Bf4 {[%clk 0:01:55.7]} 12...
Na6 {[%clk 0:02:27.6]} 13. Rfe1 {[%clk 0:01:46.7]} 13... Nc7 {[%clk 0:02:26.9]}
14. Bxc7 {[%clk 0:01:43.8]} 14... Qxc7 {[%clk 0:02:26.4]} 15. Rac1 {[%clk
0:01:44.4]} 15... Qd6 {[%clk 0:02:25.1]} 16. e4 {[%clk 0:01:39.6]} 16... dxe4
{[%clk 0:02:24.6]} 17. Nxe4 {[%clk 0:01:39.1]} 17... Qg6 {[%clk 0:02:24.8]} 18.
Nf4 {[%clk 0:01:32.8]} 18... Qh6 {[%clk 0:02:24.3]} 19. d5 {[%clk 0:01:27.6]}
19... c5 {[%clk 0:02:22.4]} 20. Qxd7 {[%clk 0:01:26.1]} 1-0

[Event "*** Titled Tuesday Blitz"]
[Site "Chess.com"]
[Date "2020.12.01"]
[Round "1"]
[White "Na_binci"]
[Black "Skatchkov_V"]
[Result "0-1"]
[WhiteElo "2121"]
[BlackElo "2492"]
[TimeControl "180+1"]
[EndTime "10:03:25 PST"]
[Termination "Skatchkov_V won by resignation"]

1. d4 {[%clk 0:02:59.8]} 1... Nf6 {[%clk 0:02:56.9]} 2. c4 {[%clk 0:02:50]} 2...
e6 {[%clk 0:02:57.2]} 3. Nf3 {[%clk 0:02:49.6]} 3... d5 {[%clk 0:02:56.8]} 4.
Nc3 {[%clk 0:02:47.2]} 4... Bb4 {[%clk 0:02:56.6]} 5. cxd5 {[%clk 0:02:47.4]}
5... exd5 {[%clk 0:02:55.4]} 6. Bg5 {[%clk 0:02:47.7]} 6... O-O {[%clk
0:02:50.5]} 7. Qc2 {[%clk 0:02:47.6]} 7... h6 {[%clk 0:02:47.1]} 8. Bh4 {[%clk
0:02:47.1]} 8... c6 {[%clk 0:02:37.4]} 9. e3 {[%clk 0:02:46.7]} 9... Bg4 {[%clk
0:02:30.3]} 10. Ne5 {[%clk 0:02:45.9]} 10... Be6 {[%clk 0:02:25.2]} 11. Bd3
{[%clk 0:02:43.7]} 11... Nbd7 {[%clk 0:02:24]} 12. O-O {[%clk 0:02:33.6]} 12...
Be7 {[%clk 0:02:22.9]} 13. f3 {[%clk 0:02:31.5]} 13... Nxe5 {[%clk 0:02:19.5]}
14. dxe5 {[%clk 0:02:32.1]} 14... Nd7 {[%clk 0:02:20.1]} 15. Bxe7 {[%clk
0:02:26.8]} 15... Qxe7 {[%clk 0:02:21]} 16. f4 {[%clk 0:02:27.7]} 16... Qc5
{[%clk 0:02:14.5]} 17. f5 {[%clk 0:02:06.4]} 17... Qxe3+ {[%clk 0:02:10.6]} 18.
Kh1 {[%clk 0:02:06]} 18... Nxe5 {[%clk 0:02:10.7]} 19. fxe6 {[%clk 0:01:50.5]}
19... Qxd3 {[%clk 0:02:10.3]} 20. exf7+ {[%clk 0:01:41.9]} 20... Rxf7 {[%clk
0:02:07.6]} 21. Qxd3 {[%clk 0:01:41.3]} 21... Nxd3 {[%clk 0:02:08.5]} 22. Rxf7
{[%clk 0:01:42.2]} 22... Kxf7 {[%clk 0:02:08.1]} 0-1

[Event "*** Titled Tuesday Blitz"]
[Site "Chess.com"]
[Date "2020.12.01"]
[Round "1"]
[White "szefru"]
[Black "maximnovik"]
[Result "0-1"]
[WhiteElo "2221"]
[BlackElo "2550"]
[TimeControl "180+1"]
[EndTime "10:03:33 PST"]
[Termination "maximnovik won by checkmate"]

1. b3 {[%clk 0:02:57.7]} 1... Nf6 {[%clk 0:02:58.7]} 2. Bb2 {[%clk 0:02:57.5]}
2... g6 {[%clk 0:02:59.2]} 3. e3 {[%clk 0:02:57.6]} 3... Bg7 {[%clk 0:02:59.6]}
4. f4 {[%clk 0:02:57.7]} 4... O-O {[%clk 0:02:59.8]} 5. Nf3 {[%clk 0:02:57.9]}
5... c5 {[%clk 0:02:59.3]} 6. Be2 {[%clk 0:02:53.4]} 6... b6 {[%clk 0:02:59.3]}
7. O-O {[%clk 0:02:43.7]} 7... Bb7 {[%clk 0:02:59.7]} 8. d4 {[%clk 0:02:38.1]}
8... d6 {[%clk 0:02:55.3]} 9. Nbd2 {[%clk 0:02:37]} 9... Nd5 {[%clk 0:02:51]}
10. Qc1 {[%clk 0:02:19.5]} 10... Nxe3 {[%clk 0:02:48.6]} 11. Re1 {[%clk
0:02:19.6]} 11... Nf5 {[%clk 0:02:40.2]} 12. dxc5 {[%clk 0:02:14.4]} 12... bxc5
{[%clk 0:02:40.1]} 13. Bxg7 {[%clk 0:02:13.9]} 13... Kxg7 {[%clk 0:02:40.4]} 14.
Qb2+ {[%clk 0:02:13.4]} 14... Kg8 {[%clk 0:02:40.9]} 15. g4 {[%clk 0:02:06.7]}
15... Nh6 {[%clk 0:02:38.4]} 16. h3 {[%clk 0:02:03.8]} 16... Nd7 {[%clk
0:02:38.2]} 17. Bc4 {[%clk 0:01:59.3]} 17... Nb6 {[%clk 0:02:36.3]} 18. Ng5
{[%clk 0:01:55.4]} 18... Qd7 {[%clk 0:02:28.5]} 19. a4 {[%clk 0:01:37.6]} 19...
Nxg4 {[%clk 0:02:22.1]} 20. Bb5 {[%clk 0:01:30.2]} 20... Qf5 {[%clk 0:02:17.9]}
21. Rxe7 {[%clk 0:01:25]} 21... Qxf4 {[%clk 0:02:17.5]} 22. Rxb7 {[%clk
0:01:21.7]} 22... Qf2+ {[%clk 0:02:16.1]} 23. Kh1 {[%clk 0:01:18.4]} 23... Qh2#
{[%clk 0:02:16.1]} 0-1

[Event "*** Titled Tuesday Blitz"]
[Site "Chess.com"]
[Date "2020.12.01"]
[Round "1"]
[White "Khnykin_Nikolay"]
[Black "PlotnikovPavel"]
[Result "0-1"]
[WhiteElo "2042"]
[BlackElo "2476"]
[TimeControl "180+1"]
[EndTime "10:03:37 PST"]
[Termination "PlotnikovPavel won by checkmate"]

1. e4 {[%clk 0:03:00.1]} 1... e5 {[%clk 0:02:57.5]} 2. Nf3 {[%clk 0:02:59.6]}
2... Nc6 {[%clk 0:02:57.6]} 3. Bc4 {[%clk 0:02:59.3]} 3... Nf6 {[%clk
0:02:56.9]} 4. O-O {[%clk 0:02:58.5]} 4... Nxe4 {[%clk 0:02:55.7]} 5. d4 {[%clk
0:02:56.4]} 5... d5 {[%clk 0:02:51.6]} 6. Bb5 {[%clk 0:02:49.8]} 6... exd4
{[%clk 0:02:51.8]} 7. Nxd4 {[%clk 0:02:47.9]} 7... Bd7 {[%clk 0:02:26.4]} 8. Re1
{[%clk 0:02:39.7]} 8... Bc5 {[%clk 0:02:25.1]} 9. Bxc6 {[%clk 0:01:23.9]} 9...
Bxc6 {[%clk 0:02:26]} 10. f3 {[%clk 0:00:45.3]} 10... Qh4 {[%clk 0:02:25.1]} 11.
fxe4 {[%clk 0:00:39.4]} 11... Bxd4+ {[%clk 0:02:24.4]} 12. Qxd4 {[%clk
0:00:36.9]} 12... Qxe1# {[%clk 0:02:23.9]} 0-1

[Event "*** Titled Tuesday Blitz"]
[Site "Chess.com"]
[Date "2020.12.01"]
[Round "1"]
[White "PaulfromSPb"]
[Black "Sunnika"]
[Result "1-0"]
[WhiteElo "2667"]
[BlackElo "2333"]
[TimeControl "180+1"]
[EndTime "10:03:51 PST"]
[Termination "PaulfromSPb won by resignation"]

1. e4 {[%clk 0:03:00.9]} 1... e6 {[%clk 0:02:59.6]} 2. d4 {[%clk 0:02:58.5]}
2... d5 {[%clk 0:03:00.5]} 3. Nd2 {[%clk 0:02:57.4]} 3... dxe4 {[%clk
0:03:00.7]} 4. Nxe4 {[%clk 0:02:57]} 4... Nd7 {[%clk 0:03:01.6]} 5. Bd3 {[%clk
0:02:53.9]} 5... Ngf6 {[%clk 0:03:02]} 6. Ng5 {[%clk 0:02:53.5]} 6... Bd6 {[%clk
0:02:47.6]} 7. Qe2 {[%clk 0:02:49.5]} 7... h6 {[%clk 0:02:39.7]} 8. N5f3 {[%clk
0:02:41.3]} 8... c5 {[%clk 0:02:34.5]} 9. Be3 {[%clk 0:02:31.5]} 9... O-O {[%clk
0:02:04.9]} 10. dxc5 {[%clk 0:02:27.5]} 10... Nxc5 {[%clk 0:02:00.7]} 11. Bxc5
{[%clk 0:02:26.4]} 11... Bxc5 {[%clk 0:01:59.5]} 12. Ne5 {[%clk 0:02:27.3]}
12... Qd5 {[%clk 0:01:49.6]} 13. Ngf3 {[%clk 0:02:25.8]} 13... a6 {[%clk
0:01:40]} 14. c4 {[%clk 0:02:22.3]} 14... Qd6 {[%clk 0:01:36.1]} 15. O-O {[%clk
0:02:21.3]} 15... b6 {[%clk 0:01:32.3]} 16. Rad1 {[%clk 0:02:20.5]} 16... Qc7
{[%clk 0:01:32.5]} 17. Be4 {[%clk 0:01:56.8]} 17... Bb7 {[%clk 0:01:25.2]} 18.
Bxb7 {[%clk 0:01:53.7]} 18... Qxb7 {[%clk 0:01:26.1]} 19. a3 {[%clk 0:01:52.7]}
19... Rad8 {[%clk 0:01:24.3]} 20. b4 {[%clk 0:01:52.4]} 20... Be7 {[%clk
0:01:22.8]} 21. h3 {[%clk 0:01:52.2]} 21... Rd2 {[%clk 0:01:19.2]} 22. Rxd2
{[%clk 0:01:50.9]} 1-0

[Event "*** Titled Tuesday Blitz"]
[Site "Chess.com"]
[Date "2020.12.01"]
[Round "1"]
[White "sorito"]
[Black "nelsoncopa"]
[Result "1-0"]
[WhiteElo "2470"]
[BlackElo "1963"]
[TimeControl "180+1"]
[EndTime "10:04:01 PST"]
[Termination "sorito won by resignation"]

1. Nf3 {[%clk 0:02:59.4]} 1... d6 {[%clk 0:02:58.8]} 2. d3 {[%clk 0:02:59]} 2...
Nf6 {[%clk 0:02:58.6]} 3. e4 {[%clk 0:02:59.9]} 3... e5 {[%clk 0:02:58.3]} 4.
Nbd2 {[%clk 0:03:00.5]} 4... Be7 {[%clk 0:02:57.9]} 5. Be2 {[%clk 0:03:01.1]}
5... O-O {[%clk 0:02:57.3]} 6. O-O {[%clk 0:03:02]} 6... Nc6 {[%clk 0:02:53.3]}
7. c3 {[%clk 0:03:02.2]} 7... Bg4 {[%clk 0:02:52.4]} 8. b4 {[%clk 0:03:02.1]}
8... a6 {[%clk 0:02:51.6]} 9. a3 {[%clk 0:03:02.3]} 9... Rb8 {[%clk 0:02:50.4]}
10. Re1 {[%clk 0:03:02.8]} 10... Qc8 {[%clk 0:02:46.1]} 11. Bb2 {[%clk
0:03:02.6]} 11... Nd8 {[%clk 0:02:43.6]} 12. d4 {[%clk 0:03:02.7]} 12... exd4
{[%clk 0:02:37.7]} 13. cxd4 {[%clk 0:03:02.7]} 13... Re8 {[%clk 0:02:34.4]} 14.
h3 {[%clk 0:03:01.8]} 14... Bh5 {[%clk 0:02:32.7]} 15. d5 {[%clk 0:02:55.1]}
15... Nd7 {[%clk 0:02:27.9]} 16. Nd4 {[%clk 0:02:47.2]} 16... Bxe2 {[%clk
0:02:22.7]} 17. Qxe2 {[%clk 0:02:40.8]} 17... b5 {[%clk 0:02:07.5]} 18. Rac1
{[%clk 0:02:33.3]} 18... Nb6 {[%clk 0:02:02.8]} 19. Nf5 {[%clk 0:02:30.4]} 19...
Bf8 {[%clk 0:01:52.6]} 20. Qf3 {[%clk 0:02:21.9]} 20... g6 {[%clk 0:01:52.2]}
21. Nxd6 {[%clk 0:01:58.1]} 21... Bxd6 {[%clk 0:01:40.5]} 22. Qf6 {[%clk
0:01:57.8]} 22... Be5 {[%clk 0:01:32.7]} 23. Bxe5 {[%clk 0:01:57.1]} 23... Rxe5
{[%clk 0:01:33.2]} 24. Qxe5 {[%clk 0:01:57.3]} 24... c6 {[%clk 0:01:29.7]} 25.
dxc6 {[%clk 0:01:47.6]} 25... Qe6 {[%clk 0:01:25.7]} 1-0

[Event "*** Titled Tuesday Blitz"]
[Site "Chess.com"]
[Date "2020.12.01"]
[Round "1"]
[White "arjwezhrtdrz"]
[Black "Leonid_Starozhilov"]
[Result "0-1"]
[WhiteElo "2322"]
[BlackElo "2650"]
[TimeControl "180+1"]
[EndTime "10:04:02 PST"]
[Termination "Leonid_Starozhilov won by resignation"]

1. e4 {[%clk 0:03:00]} 1... g6 {[%clk 0:02:58.3]} 2. c3 {[%clk 0:02:59.6]} 2...
Bg7 {[%clk 0:02:58.6]} 3. d3 {[%clk 0:03:00.1]} 3... d6 {[%clk 0:02:59.3]} 4.
Nf3 {[%clk 0:02:58.8]} 4... c5 {[%clk 0:02:58.2]} 5. Be2 {[%clk 0:02:58.6]} 5...
Nf6 {[%clk 0:02:56.4]} 6. O-O {[%clk 0:02:58.6]} 6... O-O {[%clk 0:02:57.1]} 7.
a4 {[%clk 0:02:56.7]} 7... Nc6 {[%clk 0:02:56.4]} 8. h3 {[%clk 0:02:56.2]} 8...
e5 {[%clk 0:02:53.2]} 9. Nh2 {[%clk 0:02:56]} 9... d5 {[%clk 0:02:49]} 10. Nd2
{[%clk 0:02:49.9]} 10... Be6 {[%clk 0:02:45.6]} 11. Ng4 {[%clk 0:02:48.6]} 11...
Nxg4 {[%clk 0:02:43.6]} 12. Bxg4 {[%clk 0:02:48.6]} 12... f5 {[%clk 0:02:44]}
13. Bf3 {[%clk 0:02:46]} 13... fxe4 {[%clk 0:02:43.9]} 14. dxe4 {[%clk
0:02:45.8]} 14... d4 {[%clk 0:02:44.5]} 15. Bg4 {[%clk 0:02:36]} 15... Bf7
{[%clk 0:02:33.7]} 16. Qe2 {[%clk 0:02:09.8]} 16... h5 {[%clk 0:02:18.3]} 17.
Bf3 {[%clk 0:02:07.6]} 17... Qd7 {[%clk 0:02:15.5]} 18. Kh2 {[%clk 0:01:59.5]}
18... Rad8 {[%clk 0:02:07.2]} 19. g3 {[%clk 0:01:56.6]} 19... Bh6 {[%clk
0:02:03.1]} 20. Nb1 {[%clk 0:01:45.8]} 20... d3 {[%clk 0:01:57.8]} 21. Qd1
{[%clk 0:01:26.3]} 21... d2 {[%clk 0:01:54.4]} 22. Nxd2 {[%clk 0:01:25.2]} 22...
Bxd2 {[%clk 0:01:53.9]} 23. Bg2 {[%clk 0:01:22.5]} 23... Bxc1 {[%clk 0:01:52.3]}
24. Qxc1 {[%clk 0:01:23.1]} 24... Qd2 {[%clk 0:01:49.5]} 25. Qb1 {[%clk
0:01:22.5]} 25... Bc4 {[%clk 0:01:48.7]} 0-1

[Event "*** Titled Tuesday Blitz"]
[Site "Chess.com"]
[Date "2020.12.01"]
[Round "1"]
[White "carloseduar100"]
[Black "Eliwood44"]
[Result "0-1"]
[WhiteElo "2013"]
[BlackElo "2473"]
[TimeControl "180+1"]
[EndTime "10:04:07 PST"]
[Termination "Eliwood44 won by checkmate"]

1. d4 {[%clk 0:03:00.9]} 1... Nf6 {[%clk 0:02:57.2]} 2. Bg5 {[%clk 0:02:58.8]}
2... d5 {[%clk 0:02:54.9]} 3. c3 {[%clk 0:02:58.2]} 3... c5 {[%clk 0:02:54.6]}
4. e3 {[%clk 0:02:56.2]} 4... Nc6 {[%clk 0:02:54.1]} 5. Nd2 {[%clk 0:02:55.6]}
5... Bf5 {[%clk 0:02:53.3]} 6. Ngf3 {[%clk 0:02:54.4]} 6... e6 {[%clk
0:02:52.1]} 7. Bb5 {[%clk 0:02:49.5]} 7... Qb6 {[%clk 0:02:46.1]} 8. Qe2 {[%clk
0:02:47]} 8... Bd6 {[%clk 0:02:41.9]} 9. Bxf6 {[%clk 0:02:45.3]} 9... gxf6
{[%clk 0:02:41.8]} 10. e4 {[%clk 0:02:35.9]} 10... dxe4 {[%clk 0:02:38.9]} 11.
Bxc6+ {[%clk 0:02:26.5]} 11... Qxc6 {[%clk 0:02:37]} 12. Nh4 {[%clk 0:02:25.9]}
12... cxd4 {[%clk 0:02:32.8]} 13. cxd4 {[%clk 0:02:23.5]} 13... O-O {[%clk
0:02:28.6]} 14. O-O {[%clk 0:02:18.7]} 14... Rad8 {[%clk 0:02:14.6]} 15. Nxf5
{[%clk 0:02:06.4]} 15... exf5 {[%clk 0:02:14.6]} 16. Qh5 {[%clk 0:02:06.3]}
16... Qd5 {[%clk 0:02:10]} 17. Rad1 {[%clk 0:01:55.7]} 17... Kh8 {[%clk
0:02:05.9]} 18. Kh1 {[%clk 0:01:50.9]} 18... Rg8 {[%clk 0:02:04.1]} 19. b3
{[%clk 0:01:48.3]} 19... e3 {[%clk 0:01:58.9]} 20. Ne4 {[%clk 0:01:06.2]} 20...
Qxe4 {[%clk 0:01:44.4]} 21. fxe3 {[%clk 0:01:05.7]} 21... Qxg2# {[%clk
0:01:43.4]} 0-1

[Event "*** Titled Tuesday Blitz"]
[Site "Chess.com"]
[Date "2020.12.01"]
[Round "1"]
[White "chess94cu"]
[Black "HanSchut"]
[Result "1-0"]
[WhiteElo "2540"]
[BlackElo "2202"]
[TimeControl "180+1"]
[EndTime "10:04:11 PST"]
[Termination "chess94cu won by resignation"]

1. d4 {[%clk 0:02:59.1]} 1... Nf6 {[%clk 0:02:59.7]} 2. Nf3 {[%clk 0:02:58.9]}
2... g6 {[%clk 0:03:00]} 3. g3 {[%clk 0:02:58.6]} 3... Bg7 {[%clk 0:03:00.4]} 4.
c4 {[%clk 0:02:58.6]} 4... O-O {[%clk 0:03:00.4]} 5. Nc3 {[%clk 0:02:58]} 5...
d5 {[%clk 0:03:00.8]} 6. cxd5 {[%clk 0:02:52.4]} 6... Nxd5 {[%clk 0:03:01.7]} 7.
Bg2 {[%clk 0:02:52.9]} 7... c5 {[%clk 0:03:01.8]} 8. O-O {[%clk 0:02:39.3]} 8...
cxd4 {[%clk 0:02:45.6]} 9. Nxd4 {[%clk 0:02:38.4]} 9... Nb6 {[%clk 0:02:45.3]}
10. Ndb5 {[%clk 0:02:31.8]} 10... Nc6 {[%clk 0:02:38.2]} 11. Bf4 {[%clk
0:02:06.7]} 11... e5 {[%clk 0:02:29.7]} 12. Be3 {[%clk 0:02:00.3]} 12... Nc4
{[%clk 0:02:06.8]} 13. Bc5 {[%clk 0:02:00]} 13... Re8 {[%clk 0:01:51.1]} 14. b3
{[%clk 0:01:54.7]} 14... a6 {[%clk 0:01:37.6]} 15. Qxd8 {[%clk 0:01:50.1]} 15...
Nxd8 {[%clk 0:01:26]} 16. Nc7 {[%clk 0:01:46.7]} 16... Ne6 {[%clk 0:01:24]} 17.
Nxe6 {[%clk 0:01:45.7]} 17... Bxe6 {[%clk 0:01:21.1]} 18. bxc4 {[%clk
0:01:45.7]} 18... Bxc4 {[%clk 0:01:22]} 19. Rac1 {[%clk 0:01:43.7]} 19... b5
{[%clk 0:01:21.2]} 20. Bxa8 {[%clk 0:01:43]} 20... Rxa8 {[%clk 0:01:20.7]} 21.
Rfd1 {[%clk 0:01:42.7]} 21... h6 {[%clk 0:01:20]} 22. Bb6 {[%clk 0:01:39.5]}
22... f5 {[%clk 0:01:16.6]} 23. Rd8+ {[%clk 0:01:38.9]} 23... Rxd8 {[%clk
0:01:15.8]} 24. Bxd8 {[%clk 0:01:39.8]} 24... Kf7 {[%clk 0:01:16.7]} 1-0

[Event "*** Titled Tuesday Blitz"]
[Site "Chess.com"]
[Date "2020.12.01"]
[Round "1"]
[White "AryanTari"]
[Black "ural58"]
[Result "1-0"]
[WhiteElo "2923"]
[BlackElo "2443"]
[TimeControl "180+1"]
[EndTime "10:04:27 PST"]
[Termination "AryanTari won by resignation"]

1. Nf3 {[%clk 0:03:00.2]} 1... d5 {[%clk 0:02:54.9]} 2. e3 {[%clk 0:02:59.6]}
2... Nc6 {[%clk 0:02:51]} 3. Bb5 {[%clk 0:02:51.5]} 3... f6 {[%clk 0:02:46.1]}
4. d4 {[%clk 0:02:50.8]} 4... Qd6 {[%clk 0:02:43.9]} 5. c4 {[%clk 0:02:47]} 5...
a6 {[%clk 0:02:44]} 6. Bxc6+ {[%clk 0:02:38.7]} 6... Qxc6 {[%clk 0:02:42.4]} 7.
cxd5 {[%clk 0:02:37]} 7... Qxd5 {[%clk 0:02:41.7]} 8. Nc3 {[%clk 0:02:37.4]}
8... Qh5 {[%clk 0:02:41.4]} 9. Qb3 {[%clk 0:02:29.8]} 9... e6 {[%clk 0:02:35.4]}
10. O-O {[%clk 0:02:27.8]} 10... Bd6 {[%clk 0:02:34.6]} 11. e4 {[%clk
0:02:19.8]} 11... Ne7 {[%clk 0:02:30.4]} 12. Ne2 {[%clk 0:01:57.7]} 12... Nc6
{[%clk 0:02:23.2]} 13. Bf4 {[%clk 0:01:54.8]} 13... O-O {[%clk 0:02:17]} 14.
Bxd6 {[%clk 0:01:44.7]} 14... cxd6 {[%clk 0:02:17.1]} 15. Nf4 {[%clk 0:01:45.4]}
15... Qf7 {[%clk 0:02:16.3]} 16. d5 {[%clk 0:01:42.3]} 16... exd5 {[%clk
0:02:14.3]} 17. exd5 {[%clk 0:01:42.6]} 17... Ne5 {[%clk 0:02:13.6]} 18. Nd4
{[%clk 0:01:43.1]} 18... Ng6 {[%clk 0:01:55.5]} 19. Nfe6 {[%clk 0:01:42.9]}
19... Re8 {[%clk 0:01:51.1]} 20. Rac1 {[%clk 0:01:42.8]} 20... Nf8 {[%clk
0:01:47.4]} 21. Nc7 {[%clk 0:01:40.8]} 21... Bg4 {[%clk 0:01:37.6]} 22. Nxa8
{[%clk 0:01:39.9]} 22... Rxa8 {[%clk 0:01:37.2]} 23. Rfe1 {[%clk 0:01:38.4]}
23... b5 {[%clk 0:01:27.3]} 24. Qg3 {[%clk 0:01:36.5]} 24... Bd7 {[%clk
0:01:22.1]} 25. Qxd6 {[%clk 0:01:36.2]} 1-0

[Event "*** Titled Tuesday Blitz"]
[Site "Chess.com"]
[Date "2020.12.01"]
[Round "1"]
[White "Euwe1234"]
[Black "ZuchBolt"]
[Result "1-0"]
[WhiteElo "2525"]
[BlackElo "2172"]
[TimeControl "180+1"]
[EndTime "10:04:29 PST"]
[Termination "Euwe1234 won by resignation"]

1. e4 {[%clk 0:02:59.9]} 1... c5 {[%clk 0:02:59.2]} 2. Nf3 {[%clk 0:02:59.2]}
2... e6 {[%clk 0:02:59.6]} 3. d4 {[%clk 0:02:58.6]} 3... cxd4 {[%clk 0:03:00.1]}
4. Nxd4 {[%clk 0:02:59.5]} 4... Nc6 {[%clk 0:03:00.4]} 5. Nc3 {[%clk 0:02:59.7]}
5... Qc7 {[%clk 0:03:00.8]} 6. Be3 {[%clk 0:02:59]} 6... a6 {[%clk 0:03:00.6]}
7. a3 {[%clk 0:02:58]} 7... Nf6 {[%clk 0:03:00]} 8. f4 {[%clk 0:02:56.3]} 8...
Nxd4 {[%clk 0:02:36.4]} 9. Bxd4 {[%clk 0:02:57.2]} 9... Qxf4 {[%clk 0:02:34.8]}
10. g3 {[%clk 0:02:54.8]} 10... Qc7 {[%clk 0:02:30.3]} 11. e5 {[%clk 0:02:54.7]}
11... Nd5 {[%clk 0:02:22]} 12. Nxd5 {[%clk 0:02:53.1]} 12... exd5 {[%clk
0:02:22.9]} 13. Bg2 {[%clk 0:02:52.7]} 13... Bc5 {[%clk 0:02:18.2]} 14. c3
{[%clk 0:02:50.9]} 14... O-O {[%clk 0:02:14.4]} 15. O-O {[%clk 0:02:40.1]} 15...
d6 {[%clk 0:02:13.2]} 16. exd6 {[%clk 0:02:38.6]} 16... Bxd6 {[%clk 0:02:14.1]}
17. Bxd5 {[%clk 0:02:37.7]} 17... Bh3 {[%clk 0:02:07.6]} 18. Rf2 {[%clk
0:02:32.5]} 18... Rad8 {[%clk 0:01:40.1]} 19. Qh5 {[%clk 0:02:28.9]} 19... Bc8
{[%clk 0:01:18]} 20. Raf1 {[%clk 0:02:26.3]} 20... g6 {[%clk 0:01:16.9]} 21.
Rxf7 {[%clk 0:01:48.7]} 21... Rxf7 {[%clk 0:01:12.3]} 22. Rxf7 {[%clk
0:01:43.3]} 22... Qxf7 {[%clk 0:01:02]} 23. Bxf7+ {[%clk 0:01:42.4]} 23... Kxf7
{[%clk 0:01:02.9]} 24. Qxh7+ {[%clk 0:01:41.9]} 24... Ke6 {[%clk 0:01:01.5]} 25.
Qxg6+ {[%clk 0:01:41]} 25... Kd5 {[%clk 0:01:01.4]} 26. Qg5+ {[%clk 0:01:39.2]}
1-0